{"text_format":"1","workbook":"xlsx","n_sheets":1,"sheets":["Blad1"],"not_rendered":{"charts":0,"images":6,"macros":1,"external_links":0,"defined_names":1,"comments":0,"pivot_tables":0},"unopened":[],"bounds":{"document_bytes":16777216,"sheet_cells":100000,"rows_first":2000,"rows_last":500,"rows_between":2000,"halvings":0,"cell_chars":16384,"cell_head_chars":4096},"cells_cut":0,"cells_raw":0,"read":"whole","date_system":"1900"}

{"sheet":"Blad1","index":0,"n_rows":226,"n_cols":17,"rows_kept":226,"cut":false,"hidden":false,"merged":[[1,5,3,6],[1,14,2,14],[1,13,2,13],[1,0,2,0],[0,0,0,8],[0,9,0,13],[1,1,2,1],[1,2,2,2],[1,3,2,3],[1,4,2,4],[1,7,2,7],[1,9,2,9],[1,10,2,10],[1,11,1,12]]}
["Gastenlijst Meista Assa 05 mei 2018",null,null,null,null,null,null,null,null,"Komt wel of niet. Uiterst bevestigen voor 01 april en hoeveel personen"]
["Gast nr","Achternaam","Roepnaam","Straat","Nr.","Post code",null,"Plaats",null,"To taal","Op komst","Komt?",null,"Mis schien","e-mail adres"]
[null,null,null,null,null,null,null,null,null,null,null,"WEL","NIET"]
[null,null,null,null,null,null,null,null,"Hp nummer",{"$f":"SUM(J6:J226)","v":5},{"$f":"SUM(K6:K226)","v":0},{"$f":"SUM(L7:L221)","v":0},{"$f":"SUM(M7:M221)","v":0},{"$f":"SUM(N7:N221)","v":0},null,"Barcode"]
["Gast nr.","Achternaam","Roepnaam","Straat","Kolom5","PostCode","Kolom3","Plaats","HP nummer","Aantal","Ada","Yes","No","Maby","E-mailadres","Barcode","HPenPostcode"]
[1,"Assa","Familie","De Berk",28,3224,"TA","Hellevoetsluis",621250591,5,null,5,null,null,"cor-en-meista@assa-catering.nl",{"$f":"EAN(\"Q6\")","v":"0AAAAAA*aaaagc+"},{"$f":"CONCATENATE(gastenlijst[[#This Row],[PostCode]],gastenlijst[[#This Row],[HP nummer]])","v":"3224621250591"}]
[222,"Barcode tester",null,null,null,null,null,null,8711576083282]
[2,null,null,null,null,null,null,null,"Barcode(I6)"]
[3,null,null,null,null,null,null,null,null,null,null,null,null,null,null,{"$f":"gastenlijst[[#This Row],[HPenPostcode]]","v":"0"},{"$f":"CONCATENATE(gastenlijst[[#This Row],[PostCode]],gastenlijst[[#This Row],[PostCode]]+gastenlijst[[#This Row],[HP nummer]])","v":"0"}]
[4,null,null,null,null,null,null,null,null,null,null,null,null,null,null,{"$f":"gastenlijst[[#This Row],[HPenPostcode]]","v":"0"},{"$f":"CONCATENATE(gastenlijst[[#This Row],[PostCode]],gastenlijst[[#This Row],[PostCode]]+gastenlijst[[#This Row],[HP nummer]])","v":"0"}]
[5,null,null,null,null,null,null,null,null,null,null,null,null,null,null,{"$f":"gastenlijst[[#This Row],[HPenPostcode]]","v":"0"},{"$f":"CONCATENATE(gastenlijst[[#This Row],[PostCode]],gastenlijst[[#This Row],[PostCode]]+gastenlijst[[#This Row],[HP nummer]])","v":"0"}]
[6,null,null,null,null,null,null,null,null,null,null,null,null,null,null,{"$f":"gastenlijst[[#This Row],[HPenPostcode]]","v":"0"},{"$f":"CONCATENATE(gastenlijst[[#This Row],[PostCode]],gastenlijst[[#This Row],[PostCode]]+gastenlijst[[#This Row],[HP nummer]])","v":"0"}]
[7,null,null,null,null,null,null,null,null,null,null,null,null,null,null,{"$f":"gastenlijst[[#This Row],[HPenPostcode]]","v":"0"},{"$f":"CONCATENATE(gastenlijst[[#This Row],[PostCode]],gastenlijst[[#This Row],[PostCode]]+gastenlijst[[#This Row],[HP nummer]])","v":"0"}]
[8,null,null,null,null,null,null,null,null,null,null,null,null,null,null,{"$f":"gastenlijst[[#This Row],[HPenPostcode]]","v":"0"},{"$f":"CONCATENATE(gastenlijst[[#This Row],[PostCode]],gastenlijst[[#This Row],[PostCode]]+gastenlijst[[#This Row],[HP nummer]])","v":"0"}]
[9,null,null,null,null,null,null,null,null,null,null,null,null,null,null,{"$f":"gastenlijst[[#This Row],[HPenPostcode]]","v":"0"},{"$f":"CONCATENATE(gastenlijst[[#This Row],[PostCode]],gastenlijst[[#This Row],[PostCode]]+gastenlijst[[#This Row],[HP nummer]])","v":"0"}]
[10,null,null,null,null,null,null,null,null,null,null,null,null,null,null,{"$f":"gastenlijst[[#This Row],[HPenPostcode]]","v":"0"},{"$f":"CONCATENATE(gastenlijst[[#This Row],[PostCode]],gastenlijst[[#This Row],[PostCode]]+gastenlijst[[#This Row],[HP nummer]])","v":"0"}]
[11,null,null,null,null,null,null,null,null,null,null,null,null,null,null,{"$f":"gastenlijst[[#This Row],[HPenPostcode]]","v":"0"},{"$f":"CONCATENATE(gastenlijst[[#This Row],[PostCode]],gastenlijst[[#This Row],[PostCode]]+gastenlijst[[#This Row],[HP nummer]])","v":"0"}]
[12,null,null,null,null,null,null,null,null,null,null,null,null,null,null,{"$f":"gastenlijst[[#This Row],[HPenPostcode]]","v":"0"},{"$f":"CONCATENATE(gastenlijst[[#This Row],[PostCode]],gastenlijst[[#This Row],[PostCode]]+gastenlijst[[#This Row],[HP nummer]])","v":"0"}]
[13,null,null,null,null,null,null,null,null,null,null,null,null,null,null,{"$f":"gastenlijst[[#This Row],[HPenPostcode]]","v":"0"},{"$f":"CONCATENATE(gastenlijst[[#This Row],[PostCode]],gastenlijst[[#This Row],[PostCode]]+gastenlijst[[#This Row],[HP nummer]])","v":"0"}]
[14,null,null,null,null,null,null,null,null,null,null,null,null,null,null,{"$f":"gastenlijst[[#This Row],[HPenPostcode]]","v":"0"},{"$f":"CONCATENATE(gastenlijst[[#This Row],[PostCode]],gastenlijst[[#This Row],[PostCode]]+gastenlijst[[#This Row],[HP nummer]])","v":"0"}]
[15,null,null,null,null,null,null,null,null,null,null,null,null,null,null,{"$f":"gastenlijst[[#This Row],[HPenPostcode]]","v":"0"},{"$f":"CONCATENATE(gastenlijst[[#This Row],[PostCode]],gastenlijst[[#This Row],[PostCode]]+gastenlijst[[#This Row],[HP nummer]])","v":"0"}]
[16,null,null,null,null,null,null,null,null,null,null,null,null,null,null,{"$f":"gastenlijst[[#This Row],[HPenPostcode]]","v":"0"},{"$f":"CONCATENATE(gastenlijst[[#This Row],[PostCode]],gastenlijst[[#This Row],[PostCode]]+gastenlijst[[#This Row],[HP nummer]])","v":"0"}]
[17,null,null,null,null,null,null,null,null,null,null,null,null,null,null,{"$f":"gastenlijst[[#This Row],[HPenPostcode]]","v":"0"},{"$f":"CONCATENATE(gastenlijst[[#This Row],[PostCode]],gastenlijst[[#This Row],[PostCode]]+gastenlijst[[#This Row],[HP nummer]])","v":"0"}]
[18,null,null,null,null,null,null,null,null,null,null,null,null,null,null,{"$f":"gastenlijst[[#This Row],[HPenPostcode]]","v":"0"},{"$f":"CONCATENATE(gastenlijst[[#This Row],[PostCode]],gastenlijst[[#This Row],[PostCode]]+gastenlijst[[#This Row],[HP nummer]])","v":"0"}]
[19,null,null,null,null,null,null,null,null,null,null,null,null,null,null,{"$f":"gastenlijst[[#This Row],[HPenPostcode]]","v":"0"},{"$f":"CONCATENATE(gastenlijst[[#This Row],[PostCode]],gastenlijst[[#This Row],[PostCode]]+gastenlijst[[#This Row],[HP nummer]])","v":"0"}]
[20,null,null,null,null,null,null,null,null,null,null,null,null,null,null,{"$f":"gastenlijst[[#This Row],[HPenPostcode]]","v":"0"},{"$f":"CONCATENATE(gastenlijst[[#This Row],[PostCode]],gastenlijst[[#This Row],[PostCode]]+gastenlijst[[#This Row],[HP nummer]])","v":"0"}]
[21,null,null,null,null,null,null,null,null,null,null,null,null,null,null,{"$f":"gastenlijst[[#This Row],[HPenPostcode]]","v":"0"},{"$f":"CONCATENATE(gastenlijst[[#This Row],[PostCode]],gastenlijst[[#This Row],[PostCode]]+gastenlijst[[#This Row],[HP nummer]])","v":"0"}]
[22,null,null,null,null,null,null,null,null,null,null,null,null,null,null,{"$f":"gastenlijst[[#This Row],[HPenPostcode]]","v":"0"},{"$f":"CONCATENATE(gastenlijst[[#This Row],[PostCode]],gastenlijst[[#This Row],[PostCode]]+gastenlijst[[#This Row],[HP nummer]])","v":"0"}]
[23,null,null,null,null,null,null,null,null,null,null,null,null,null,null,{"$f":"gastenlijst[[#This Row],[HPenPostcode]]","v":"0"},{"$f":"CONCATENATE(gastenlijst[[#This Row],[PostCode]],gastenlijst[[#This Row],[PostCode]]+gastenlijst[[#This Row],[HP nummer]])","v":"0"}]
[24,null,null,null,null,null,null,null,null,null,null,null,null,null,null,{"$f":"gastenlijst[[#This Row],[HPenPostcode]]","v":"0"},{"$f":"CONCATENATE(gastenlijst[[#This Row],[PostCode]],gastenlijst[[#This Row],[PostCode]]+gastenlijst[[#This Row],[HP nummer]])","v":"0"}]
[25,null,null,null,null,null,null,null,null,null,null,null,null,null,null,{"$f":"gastenlijst[[#This Row],[HPenPostcode]]","v":"0"},{"$f":"CONCATENATE(gastenlijst[[#This Row],[PostCode]],gastenlijst[[#This Row],[PostCode]]+gastenlijst[[#This Row],[HP nummer]])","v":"0"}]
[26,null,null,null,null,null,null,null,null,null,null,null,null,null,null,{"$f":"gastenlijst[[#This Row],[HPenPostcode]]","v":"0"},{"$f":"CONCATENATE(gastenlijst[[#This Row],[PostCode]],gastenlijst[[#This Row],[PostCode]]+gastenlijst[[#This Row],[HP nummer]])","v":"0"}]
[27,null,null,null,null,null,null,null,null,null,null,null,null,null,null,{"$f":"gastenlijst[[#This Row],[HPenPostcode]]","v":"0"},{"$f":"CONCATENATE(gastenlijst[[#This Row],[PostCode]],gastenlijst[[#This Row],[PostCode]]+gastenlijst[[#This Row],[HP nummer]])","v":"0"}]
[28,null,null,null,null,null,null,null,null,null,null,null,null,null,null,{"$f":"gastenlijst[[#This Row],[HPenPostcode]]","v":"0"},{"$f":"CONCATENATE(gastenlijst[[#This Row],[PostCode]],gastenlijst[[#This Row],[PostCode]]+gastenlijst[[#This Row],[HP nummer]])","v":"0"}]
[29,null,null,null,null,null,null,null,null,null,null,null,null,null,null,{"$f":"gastenlijst[[#This Row],[HPenPostcode]]","v":"0"},{"$f":"CONCATENATE(gastenlijst[[#This Row],[PostCode]],gastenlijst[[#This Row],[PostCode]]+gastenlijst[[#This Row],[HP nummer]])","v":"0"}]
[30,null,null,null,null,null,null,null,null,null,null,null,null,null,null,{"$f":"gastenlijst[[#This Row],[HPenPostcode]]","v":"0"},{"$f":"CONCATENATE(gastenlijst[[#This Row],[PostCode]],gastenlijst[[#This Row],[PostCode]]+gastenlijst[[#This Row],[HP nummer]])","v":"0"}]
[31,null,null,null,null,null,null,null,null,null,null,null,null,null,null,{"$f":"gastenlijst[[#This Row],[HPenPostcode]]","v":"0"},{"$f":"CONCATENATE(gastenlijst[[#This Row],[PostCode]],gastenlijst[[#This Row],[PostCode]]+gastenlijst[[#This Row],[HP nummer]])","v":"0"}]
[32,null,null,null,null,null,null,null,null,null,null,null,null,null,null,{"$f":"gastenlijst[[#This Row],[HPenPostcode]]","v":"0"},{"$f":"CONCATENATE(gastenlijst[[#This Row],[PostCode]],gastenlijst[[#This Row],[PostCode]]+gastenlijst[[#This Row],[HP nummer]])","v":"0"}]
[33,null,null,null,null,null,null,null,null,null,null,null,null,null,null,{"$f":"gastenlijst[[#This Row],[HPenPostcode]]","v":"0"},{"$f":"CONCATENATE(gastenlijst[[#This Row],[PostCode]],gastenlijst[[#This Row],[PostCode]]+gastenlijst[[#This Row],[HP nummer]])","v":"0"}]
[34,null,null,null,null,null,null,null,null,null,null,null,null,null,null,{"$f":"gastenlijst[[#This Row],[HPenPostcode]]","v":"0"},{"$f":"CONCATENATE(gastenlijst[[#This Row],[PostCode]],gastenlijst[[#This Row],[PostCode]]+gastenlijst[[#This Row],[HP nummer]])","v":"0"}]
[35,null,null,null,null,null,null,null,null,null,null,null,null,null,null,{"$f":"gastenlijst[[#This Row],[HPenPostcode]]","v":"0"},{"$f":"CONCATENATE(gastenlijst[[#This Row],[PostCode]],gastenlijst[[#This Row],[PostCode]]+gastenlijst[[#This Row],[HP nummer]])","v":"0"}]
[36,null,null,null,null,null,null,null,null,null,null,null,null,null,null,{"$f":"gastenlijst[[#This Row],[HPenPostcode]]","v":"0"},{"$f":"CONCATENATE(gastenlijst[[#This Row],[PostCode]],gastenlijst[[#This Row],[PostCode]]+gastenlijst[[#This Row],[HP nummer]])","v":"0"}]
[37,null,null,null,null,null,null,null,null,null,null,null,null,null,null,{"$f":"gastenlijst[[#This Row],[HPenPostcode]]","v":"0"},{"$f":"CONCATENATE(gastenlijst[[#This Row],[PostCode]],gastenlijst[[#This Row],[PostCode]]+gastenlijst[[#This Row],[HP nummer]])","v":"0"}]
[38,null,null,null,null,null,null,null,null,null,null,null,null,null,null,{"$f":"gastenlijst[[#This Row],[HPenPostcode]]","v":"0"},{"$f":"CONCATENATE(gastenlijst[[#This Row],[PostCode]],gastenlijst[[#This Row],[PostCode]]+gastenlijst[[#This Row],[HP nummer]])","v":"0"}]
[39,null,null,null,null,null,null,null,null,null,null,null,null,null,null,{"$f":"gastenlijst[[#This Row],[HPenPostcode]]","v":"0"},{"$f":"CONCATENATE(gastenlijst[[#This Row],[PostCode]],gastenlijst[[#This Row],[PostCode]]+gastenlijst[[#This Row],[HP nummer]])","v":"0"}]
[40,null,null,null,null,null,null,null,null,null,null,null,null,null,null,{"$f":"gastenlijst[[#This Row],[HPenPostcode]]","v":"0"},{"$f":"CONCATENATE(gastenlijst[[#This Row],[PostCode]],gastenlijst[[#This Row],[PostCode]]+gastenlijst[[#This Row],[HP nummer]])","v":"0"}]
[41,null,null,null,null,null,null,null,null,null,null,null,null,null,null,{"$f":"gastenlijst[[#This Row],[HPenPostcode]]","v":"0"},{"$f":"CONCATENATE(gastenlijst[[#This Row],[PostCode]],gastenlijst[[#This Row],[PostCode]]+gastenlijst[[#This Row],[HP nummer]])","v":"0"}]
[42,null,null,null,null,null,null,null,null,null,null,null,null,null,null,{"$f":"gastenlijst[[#This Row],[HPenPostcode]]","v":"0"},{"$f":"CONCATENATE(gastenlijst[[#This Row],[PostCode]],gastenlijst[[#This Row],[PostCode]]+gastenlijst[[#This Row],[HP nummer]])","v":"0"}]
[43,null,null,null,null,null,null,null,null,null,null,null,null,null,null,{"$f":"gastenlijst[[#This Row],[HPenPostcode]]","v":"0"},{"$f":"CONCATENATE(gastenlijst[[#This Row],[PostCode]],gastenlijst[[#This Row],[PostCode]]+gastenlijst[[#This Row],[HP nummer]])","v":"0"}]
[44,null,null,null,null,null,null,null,null,null,null,null,null,null,null,{"$f":"gastenlijst[[#This Row],[HPenPostcode]]","v":"0"},{"$f":"CONCATENATE(gastenlijst[[#This Row],[PostCode]],gastenlijst[[#This Row],[PostCode]]+gastenlijst[[#This Row],[HP nummer]])","v":"0"}]
[45,null,null,null,null,null,null,null,null,null,null,null,null,null,null,{"$f":"gastenlijst[[#This Row],[HPenPostcode]]","v":"0"},{"$f":"CONCATENATE(gastenlijst[[#This Row],[PostCode]],gastenlijst[[#This Row],[PostCode]]+gastenlijst[[#This Row],[HP nummer]])","v":"0"}]
[46,null,null,null,null,null,null,null,null,null,null,null,null,null,null,{"$f":"gastenlijst[[#This Row],[HPenPostcode]]","v":"0"},{"$f":"CONCATENATE(gastenlijst[[#This Row],[PostCode]],gastenlijst[[#This Row],[PostCode]]+gastenlijst[[#This Row],[HP nummer]])","v":"0"}]
[47,null,null,null,null,null,null,null,null,null,null,null,null,null,null,{"$f":"gastenlijst[[#This Row],[HPenPostcode]]","v":"0"},{"$f":"CONCATENATE(gastenlijst[[#This Row],[PostCode]],gastenlijst[[#This Row],[PostCode]]+gastenlijst[[#This Row],[HP nummer]])","v":"0"}]
[48,null,null,null,null,null,null,null,null,null,null,null,null,null,null,{"$f":"gastenlijst[[#This Row],[HPenPostcode]]","v":"0"},{"$f":"CONCATENATE(gastenlijst[[#This Row],[PostCode]],gastenlijst[[#This Row],[PostCode]]+gastenlijst[[#This Row],[HP nummer]])","v":"0"}]
[49,null,null,null,null,null,null,null,null,null,null,null,null,null,null,{"$f":"gastenlijst[[#This Row],[HPenPostcode]]","v":"0"},{"$f":"CONCATENATE(gastenlijst[[#This Row],[PostCode]],gastenlijst[[#This Row],[PostCode]]+gastenlijst[[#This Row],[HP nummer]])","v":"0"}]
[50,null,null,null,null,null,null,null,null,null,null,null,null,null,null,{"$f":"gastenlijst[[#This Row],[HPenPostcode]]","v":"0"},{"$f":"CONCATENATE(gastenlijst[[#This Row],[PostCode]],gastenlijst[[#This Row],[PostCode]]+gastenlijst[[#This Row],[HP nummer]])","v":"0"}]
[51,null,null,null,null,null,null,null,null,null,null,null,null,null,null,{"$f":"gastenlijst[[#This Row],[HPenPostcode]]","v":"0"},{"$f":"CONCATENATE(gastenlijst[[#This Row],[PostCode]],gastenlijst[[#This Row],[PostCode]]+gastenlijst[[#This Row],[HP nummer]])","v":"0"}]
[52,null,null,null,null,null,null,null,null,null,null,null,null,null,null,{"$f":"gastenlijst[[#This Row],[HPenPostcode]]","v":"0"},{"$f":"CONCATENATE(gastenlijst[[#This Row],[PostCode]],gastenlijst[[#This Row],[PostCode]]+gastenlijst[[#This Row],[HP nummer]])","v":"0"}]
[53,null,null,null,null,null,null,null,null,null,null,null,null,null,null,{"$f":"gastenlijst[[#This Row],[HPenPostcode]]","v":"0"},{"$f":"CONCATENATE(gastenlijst[[#This Row],[PostCode]],gastenlijst[[#This Row],[PostCode]]+gastenlijst[[#This Row],[HP nummer]])","v":"0"}]
[54,null,null,null,null,null,null,null,null,null,null,null,null,null,null,{"$f":"gastenlijst[[#This Row],[HPenPostcode]]","v":"0"},{"$f":"CONCATENATE(gastenlijst[[#This Row],[PostCode]],gastenlijst[[#This Row],[PostCode]]+gastenlijst[[#This Row],[HP nummer]])","v":"0"}]
[55,null,null,null,null,null,null,null,null,null,null,null,null,null,null,{"$f":"gastenlijst[[#This Row],[HPenPostcode]]","v":"0"},{"$f":"CONCATENATE(gastenlijst[[#This Row],[PostCode]],gastenlijst[[#This Row],[PostCode]]+gastenlijst[[#This Row],[HP nummer]])","v":"0"}]
[56,null,null,null,null,null,null,null,null,null,null,null,null,null,null,{"$f":"gastenlijst[[#This Row],[HPenPostcode]]","v":"0"},{"$f":"CONCATENATE(gastenlijst[[#This Row],[PostCode]],gastenlijst[[#This Row],[PostCode]]+gastenlijst[[#This Row],[HP nummer]])","v":"0"}]
[57,null,null,null,null,null,null,null,null,null,null,null,null,null,null,{"$f":"gastenlijst[[#This Row],[HPenPostcode]]","v":"0"},{"$f":"CONCATENATE(gastenlijst[[#This Row],[PostCode]],gastenlijst[[#This Row],[PostCode]]+gastenlijst[[#This Row],[HP nummer]])","v":"0"}]
[58,null,null,null,null,null,null,null,null,null,null,null,null,null,null,{"$f":"gastenlijst[[#This Row],[HPenPostcode]]","v":"0"},{"$f":"CONCATENATE(gastenlijst[[#This Row],[PostCode]],gastenlijst[[#This Row],[PostCode]]+gastenlijst[[#This Row],[HP nummer]])","v":"0"}]
[59,null,null,null,null,null,null,null,null,null,null,null,null,null,null,{"$f":"gastenlijst[[#This Row],[HPenPostcode]]","v":"0"},{"$f":"CONCATENATE(gastenlijst[[#This Row],[PostCode]],gastenlijst[[#This Row],[PostCode]]+gastenlijst[[#This Row],[HP nummer]])","v":"0"}]
[60,null,null,null,null,null,null,null,null,null,null,null,null,null,null,{"$f":"gastenlijst[[#This Row],[HPenPostcode]]","v":"0"},{"$f":"CONCATENATE(gastenlijst[[#This Row],[PostCode]],gastenlijst[[#This Row],[PostCode]]+gastenlijst[[#This Row],[HP nummer]])","v":"0"}]
[61,null,null,null,null,null,null,null,null,null,null,null,null,null,null,{"$f":"gastenlijst[[#This Row],[HPenPostcode]]","v":"0"},{"$f":"CONCATENATE(gastenlijst[[#This Row],[PostCode]],gastenlijst[[#This Row],[PostCode]]+gastenlijst[[#This Row],[HP nummer]])","v":"0"}]
[62,null,null,null,null,null,null,null,null,null,null,null,null,null,null,{"$f":"gastenlijst[[#This Row],[HPenPostcode]]","v":"0"},{"$f":"CONCATENATE(gastenlijst[[#This Row],[PostCode]],gastenlijst[[#This Row],[PostCode]]+gastenlijst[[#This Row],[HP nummer]])","v":"0"}]
[63,null,null,null,null,null,null,null,null,null,null,null,null,null,null,{"$f":"gastenlijst[[#This Row],[HPenPostcode]]","v":"0"},{"$f":"CONCATENATE(gastenlijst[[#This Row],[PostCode]],gastenlijst[[#This Row],[PostCode]]+gastenlijst[[#This Row],[HP nummer]])","v":"0"}]
[64,null,null,null,null,null,null,null,null,null,null,null,null,null,null,{"$f":"gastenlijst[[#This Row],[HPenPostcode]]","v":"0"},{"$f":"CONCATENATE(gastenlijst[[#This Row],[PostCode]],gastenlijst[[#This Row],[PostCode]]+gastenlijst[[#This Row],[HP nummer]])","v":"0"}]
[65,null,null,null,null,null,null,null,null,null,null,null,null,null,null,{"$f":"gastenlijst[[#This Row],[HPenPostcode]]","v":"0"},{"$f":"CONCATENATE(gastenlijst[[#This Row],[PostCode]],gastenlijst[[#This Row],[PostCode]]+gastenlijst[[#This Row],[HP nummer]])","v":"0"}]
[66,null,null,null,null,null,null,null,null,null,null,null,null,null,null,{"$f":"gastenlijst[[#This Row],[HPenPostcode]]","v":"0"},{"$f":"CONCATENATE(gastenlijst[[#This Row],[PostCode]],gastenlijst[[#This Row],[PostCode]]+gastenlijst[[#This Row],[HP nummer]])","v":"0"}]
[67,null,null,null,null,null,null,null,null,null,null,null,null,null,null,{"$f":"gastenlijst[[#This Row],[HPenPostcode]]","v":"0"},{"$f":"CONCATENATE(gastenlijst[[#This Row],[PostCode]],gastenlijst[[#This Row],[PostCode]]+gastenlijst[[#This Row],[HP nummer]])","v":"0"}]
[68,null,null,null,null,null,null,null,null,null,null,null,null,null,null,{"$f":"gastenlijst[[#This Row],[HPenPostcode]]","v":"0"},{"$f":"CONCATENATE(gastenlijst[[#This Row],[PostCode]],gastenlijst[[#This Row],[PostCode]]+gastenlijst[[#This Row],[HP nummer]])","v":"0"}]
[69,null,null,null,null,null,null,null,null,null,null,null,null,null,null,{"$f":"gastenlijst[[#This Row],[HPenPostcode]]","v":"0"},{"$f":"CONCATENATE(gastenlijst[[#This Row],[PostCode]],gastenlijst[[#This Row],[PostCode]]+gastenlijst[[#This Row],[HP nummer]])","v":"0"}]
[70,null,null,null,null,null,null,null,null,null,null,null,null,null,null,{"$f":"gastenlijst[[#This Row],[HPenPostcode]]","v":"0"},{"$f":"CONCATENATE(gastenlijst[[#This Row],[PostCode]],gastenlijst[[#This Row],[PostCode]]+gastenlijst[[#This Row],[HP nummer]])","v":"0"}]
[71,null,null,null,null,null,null,null,null,null,null,null,null,null,null,{"$f":"gastenlijst[[#This Row],[HPenPostcode]]","v":"0"},{"$f":"CONCATENATE(gastenlijst[[#This Row],[PostCode]],gastenlijst[[#This Row],[PostCode]]+gastenlijst[[#This Row],[HP nummer]])","v":"0"}]
[72,null,null,null,null,null,null,null,null,null,null,null,null,null,null,{"$f":"gastenlijst[[#This Row],[HPenPostcode]]","v":"0"},{"$f":"CONCATENATE(gastenlijst[[#This Row],[PostCode]],gastenlijst[[#This Row],[PostCode]]+gastenlijst[[#This Row],[HP nummer]])","v":"0"}]
[73,null,null,null,null,null,null,null,null,null,null,null,null,null,null,{"$f":"gastenlijst[[#This Row],[HPenPostcode]]","v":"0"},{"$f":"CONCATENATE(gastenlijst[[#This Row],[PostCode]],gastenlijst[[#This Row],[PostCode]]+gastenlijst[[#This Row],[HP nummer]])","v":"0"}]
[74,null,null,null,null,null,null,null,null,null,null,null,null,null,null,{"$f":"gastenlijst[[#This Row],[HPenPostcode]]","v":"0"},{"$f":"CONCATENATE(gastenlijst[[#This Row],[PostCode]],gastenlijst[[#This Row],[PostCode]]+gastenlijst[[#This Row],[HP nummer]])","v":"0"}]
[75,null,null,null,null,null,null,null,null,null,null,null,null,null,null,{"$f":"gastenlijst[[#This Row],[HPenPostcode]]","v":"0"},{"$f":"CONCATENATE(gastenlijst[[#This Row],[PostCode]],gastenlijst[[#This Row],[PostCode]]+gastenlijst[[#This Row],[HP nummer]])","v":"0"}]
[76,null,null,null,null,null,null,null,null,null,null,null,null,null,null,{"$f":"gastenlijst[[#This Row],[HPenPostcode]]","v":"0"},{"$f":"CONCATENATE(gastenlijst[[#This Row],[PostCode]],gastenlijst[[#This Row],[PostCode]]+gastenlijst[[#This Row],[HP nummer]])","v":"0"}]
[77,null,null,null,null,null,null,null,null,null,null,null,null,null,null,{"$f":"gastenlijst[[#This Row],[HPenPostcode]]","v":"0"},{"$f":"CONCATENATE(gastenlijst[[#This Row],[PostCode]],gastenlijst[[#This Row],[PostCode]]+gastenlijst[[#This Row],[HP nummer]])","v":"0"}]
[78,null,null,null,null,null,null,null,null,null,null,null,null,null,null,{"$f":"gastenlijst[[#This Row],[HPenPostcode]]","v":"0"},{"$f":"CONCATENATE(gastenlijst[[#This Row],[PostCode]],gastenlijst[[#This Row],[PostCode]]+gastenlijst[[#This Row],[HP nummer]])","v":"0"}]
[79,null,null,null,null,null,null,null,null,null,null,null,null,null,null,{"$f":"gastenlijst[[#This Row],[HPenPostcode]]","v":"0"},{"$f":"CONCATENATE(gastenlijst[[#This Row],[PostCode]],gastenlijst[[#This Row],[PostCode]]+gastenlijst[[#This Row],[HP nummer]])","v":"0"}]
[80,null,null,null,null,null,null,null,null,null,null,null,null,null,null,{"$f":"gastenlijst[[#This Row],[HPenPostcode]]","v":"0"},{"$f":"CONCATENATE(gastenlijst[[#This Row],[PostCode]],gastenlijst[[#This Row],[PostCode]]+gastenlijst[[#This Row],[HP nummer]])","v":"0"}]
[81,null,null,null,null,null,null,null,null,null,null,null,null,null,null,{"$f":"gastenlijst[[#This Row],[HPenPostcode]]","v":"0"},{"$f":"CONCATENATE(gastenlijst[[#This Row],[PostCode]],gastenlijst[[#This Row],[PostCode]]+gastenlijst[[#This Row],[HP nummer]])","v":"0"}]
[82,null,null,null,null,null,null,null,null,null,null,null,null,null,null,{"$f":"gastenlijst[[#This Row],[HPenPostcode]]","v":"0"},{"$f":"CONCATENATE(gastenlijst[[#This Row],[PostCode]],gastenlijst[[#This Row],[PostCode]]+gastenlijst[[#This Row],[HP nummer]])","v":"0"}]
[83,null,null,null,null,null,null,null,null,null,null,null,null,null,null,{"$f":"gastenlijst[[#This Row],[HPenPostcode]]","v":"0"},{"$f":"CONCATENATE(gastenlijst[[#This Row],[PostCode]],gastenlijst[[#This Row],[PostCode]]+gastenlijst[[#This Row],[HP nummer]])","v":"0"}]
[84,null,null,null,null,null,null,null,null,null,null,null,null,null,null,{"$f":"gastenlijst[[#This Row],[HPenPostcode]]","v":"0"},{"$f":"CONCATENATE(gastenlijst[[#This Row],[PostCode]],gastenlijst[[#This Row],[PostCode]]+gastenlijst[[#This Row],[HP nummer]])","v":"0"}]
[85,null,null,null,null,null,null,null,null,null,null,null,null,null,null,{"$f":"gastenlijst[[#This Row],[HPenPostcode]]","v":"0"},{"$f":"CONCATENATE(gastenlijst[[#This Row],[PostCode]],gastenlijst[[#This Row],[PostCode]]+gastenlijst[[#This Row],[HP nummer]])","v":"0"}]
[86,null,null,null,null,null,null,null,null,null,null,null,null,null,null,{"$f":"gastenlijst[[#This Row],[HPenPostcode]]","v":"0"},{"$f":"CONCATENATE(gastenlijst[[#This Row],[PostCode]],gastenlijst[[#This Row],[PostCode]]+gastenlijst[[#This Row],[HP nummer]])","v":"0"}]
[87,null,null,null,null,null,null,null,null,null,null,null,null,null,null,{"$f":"gastenlijst[[#This Row],[HPenPostcode]]","v":"0"},{"$f":"CONCATENATE(gastenlijst[[#This Row],[PostCode]],gastenlijst[[#This Row],[PostCode]]+gastenlijst[[#This Row],[HP nummer]])","v":"0"}]
[88,null,null,null,null,null,null,null,null,null,null,null,null,null,null,{"$f":"gastenlijst[[#This Row],[HPenPostcode]]","v":"0"},{"$f":"CONCATENATE(gastenlijst[[#This Row],[PostCode]],gastenlijst[[#This Row],[PostCode]]+gastenlijst[[#This Row],[HP nummer]])","v":"0"}]
[90,null,null,null,null,null,null,null,null,null,null,null,null,null,null,{"$f":"gastenlijst[[#This Row],[HPenPostcode]]","v":"0"},{"$f":"CONCATENATE(gastenlijst[[#This Row],[PostCode]],gastenlijst[[#This Row],[PostCode]]+gastenlijst[[#This Row],[HP nummer]])","v":"0"}]
[91,null,null,null,null,null,null,null,null,null,null,null,null,null,null,{"$f":"gastenlijst[[#This Row],[HPenPostcode]]","v":"0"},{"$f":"CONCATENATE(gastenlijst[[#This Row],[PostCode]],gastenlijst[[#This Row],[PostCode]]+gastenlijst[[#This Row],[HP nummer]])","v":"0"}]
[92,null,null,null,null,null,null,null,null,null,null,null,null,null,null,{"$f":"gastenlijst[[#This Row],[HPenPostcode]]","v":"0"},{"$f":"CONCATENATE(gastenlijst[[#This Row],[PostCode]],gastenlijst[[#This Row],[PostCode]]+gastenlijst[[#This Row],[HP nummer]])","v":"0"}]
[93,null,null,null,null,null,null,null,null,null,null,null,null,null,null,{"$f":"gastenlijst[[#This Row],[HPenPostcode]]","v":"0"},{"$f":"CONCATENATE(gastenlijst[[#This Row],[PostCode]],gastenlijst[[#This Row],[PostCode]]+gastenlijst[[#This Row],[HP nummer]])","v":"0"}]
[94,null,null,null,null,null,null,null,null,null,null,null,null,null,null,{"$f":"gastenlijst[[#This Row],[HPenPostcode]]","v":"0"},{"$f":"CONCATENATE(gastenlijst[[#This Row],[PostCode]],gastenlijst[[#This Row],[PostCode]]+gastenlijst[[#This Row],[HP nummer]])","v":"0"}]
[95,null,null,null,null,null,null,null,null,null,null,null,null,null,null,{"$f":"gastenlijst[[#This Row],[HPenPostcode]]","v":"0"},{"$f":"CONCATENATE(gastenlijst[[#This Row],[PostCode]],gastenlijst[[#This Row],[PostCode]]+gastenlijst[[#This Row],[HP nummer]])","v":"0"}]
[96,null,null,null,null,null,null,null,null,null,null,null,null,null,null,{"$f":"gastenlijst[[#This Row],[HPenPostcode]]","v":"0"},{"$f":"CONCATENATE(gastenlijst[[#This Row],[PostCode]],gastenlijst[[#This Row],[PostCode]]+gastenlijst[[#This Row],[HP nummer]])","v":"0"}]
[97,null,null,null,null,null,null,null,null,null,null,null,null,null,null,{"$f":"gastenlijst[[#This Row],[HPenPostcode]]","v":"0"},{"$f":"CONCATENATE(gastenlijst[[#This Row],[PostCode]],gastenlijst[[#This Row],[PostCode]]+gastenlijst[[#This Row],[HP nummer]])","v":"0"}]
[98,null,null,null,null,null,null,null,null,null,null,null,null,null,null,{"$f":"gastenlijst[[#This Row],[HPenPostcode]]","v":"0"},{"$f":"CONCATENATE(gastenlijst[[#This Row],[PostCode]],gastenlijst[[#This Row],[PostCode]]+gastenlijst[[#This Row],[HP nummer]])","v":"0"}]
[99,null,null,null,null,null,null,null,null,null,null,null,null,null,null,{"$f":"gastenlijst[[#This Row],[HPenPostcode]]","v":"0"},{"$f":"CONCATENATE(gastenlijst[[#This Row],[PostCode]],gastenlijst[[#This Row],[PostCode]]+gastenlijst[[#This Row],[HP nummer]])","v":"0"}]
[100,null,null,null,null,null,null,null,null,null,null,null,null,null,null,{"$f":"gastenlijst[[#This Row],[HPenPostcode]]","v":"0"},{"$f":"CONCATENATE(gastenlijst[[#This Row],[PostCode]],gastenlijst[[#This Row],[PostCode]]+gastenlijst[[#This Row],[HP nummer]])","v":"0"}]
[101,null,null,null,null,null,null,null,null,null,null,null,null,null,null,{"$f":"gastenlijst[[#This Row],[HPenPostcode]]","v":"0"},{"$f":"CONCATENATE(gastenlijst[[#This Row],[PostCode]],gastenlijst[[#This Row],[PostCode]]+gastenlijst[[#This Row],[HP nummer]])","v":"0"}]
[102,null,null,null,null,null,null,null,null,null,null,null,null,null,null,{"$f":"gastenlijst[[#This Row],[HPenPostcode]]","v":"0"},{"$f":"CONCATENATE(gastenlijst[[#This Row],[PostCode]],gastenlijst[[#This Row],[PostCode]]+gastenlijst[[#This Row],[HP nummer]])","v":"0"}]
[103,null,null,null,null,null,null,null,null,null,null,null,null,null,null,{"$f":"gastenlijst[[#This Row],[HPenPostcode]]","v":"0"},{"$f":"CONCATENATE(gastenlijst[[#This Row],[PostCode]],gastenlijst[[#This Row],[PostCode]]+gastenlijst[[#This Row],[HP nummer]])","v":"0"}]
[104,null,null,null,null,null,null,null,null,null,null,null,null,null,null,{"$f":"gastenlijst[[#This Row],[HPenPostcode]]","v":"0"},{"$f":"CONCATENATE(gastenlijst[[#This Row],[PostCode]],gastenlijst[[#This Row],[PostCode]]+gastenlijst[[#This Row],[HP nummer]])","v":"0"}]
[105,null,null,null,null,null,null,null,null,null,null,null,null,null,null,{"$f":"gastenlijst[[#This Row],[HPenPostcode]]","v":"0"},{"$f":"CONCATENATE(gastenlijst[[#This Row],[PostCode]],gastenlijst[[#This Row],[PostCode]]+gastenlijst[[#This Row],[HP nummer]])","v":"0"}]
[106,null,null,null,null,null,null,null,null,null,null,null,null,null,null,{"$f":"gastenlijst[[#This Row],[HPenPostcode]]","v":"0"},{"$f":"CONCATENATE(gastenlijst[[#This Row],[PostCode]],gastenlijst[[#This Row],[PostCode]]+gastenlijst[[#This Row],[HP nummer]])","v":"0"}]
[107,null,null,null,null,null,null,null,null,null,null,null,null,null,null,{"$f":"gastenlijst[[#This Row],[HPenPostcode]]","v":"0"},{"$f":"CONCATENATE(gastenlijst[[#This Row],[PostCode]],gastenlijst[[#This Row],[PostCode]]+gastenlijst[[#This Row],[HP nummer]])","v":"0"}]
[108,null,null,null,null,null,null,null,null,null,null,null,null,null,null,{"$f":"gastenlijst[[#This Row],[HPenPostcode]]","v":"0"},{"$f":"CONCATENATE(gastenlijst[[#This Row],[PostCode]],gastenlijst[[#This Row],[PostCode]]+gastenlijst[[#This Row],[HP nummer]])","v":"0"}]
[109,null,null,null,null,null,null,null,null,null,null,null,null,null,null,{"$f":"gastenlijst[[#This Row],[HPenPostcode]]","v":"0"},{"$f":"CONCATENATE(gastenlijst[[#This Row],[PostCode]],gastenlijst[[#This Row],[PostCode]]+gastenlijst[[#This Row],[HP nummer]])","v":"0"}]
[110,null,null,null,null,null,null,null,null,null,null,null,null,null,null,{"$f":"gastenlijst[[#This Row],[HPenPostcode]]","v":"0"},{"$f":"CONCATENATE(gastenlijst[[#This Row],[PostCode]],gastenlijst[[#This Row],[PostCode]]+gastenlijst[[#This Row],[HP nummer]])","v":"0"}]
[111,null,null,null,null,null,null,null,null,null,null,null,null,null,null,{"$f":"gastenlijst[[#This Row],[HPenPostcode]]","v":"0"},{"$f":"CONCATENATE(gastenlijst[[#This Row],[PostCode]],gastenlijst[[#This Row],[PostCode]]+gastenlijst[[#This Row],[HP nummer]])","v":"0"}]
[112,null,null,null,null,null,null,null,null,null,null,null,null,null,null,{"$f":"gastenlijst[[#This Row],[HPenPostcode]]","v":"0"},{"$f":"CONCATENATE(gastenlijst[[#This Row],[PostCode]],gastenlijst[[#This Row],[PostCode]]+gastenlijst[[#This Row],[HP nummer]])","v":"0"}]
[113,null,null,null,null,null,null,null,null,null,null,null,null,null,null,{"$f":"gastenlijst[[#This Row],[HPenPostcode]]","v":"0"},{"$f":"CONCATENATE(gastenlijst[[#This Row],[PostCode]],gastenlijst[[#This Row],[PostCode]]+gastenlijst[[#This Row],[HP nummer]])","v":"0"}]
[114,null,null,null,null,null,null,null,null,null,null,null,null,null,null,{"$f":"gastenlijst[[#This Row],[HPenPostcode]]","v":"0"},{"$f":"CONCATENATE(gastenlijst[[#This Row],[PostCode]],gastenlijst[[#This Row],[PostCode]]+gastenlijst[[#This Row],[HP nummer]])","v":"0"}]
[115,null,null,null,null,null,null,null,null,null,null,null,null,null,null,{"$f":"gastenlijst[[#This Row],[HPenPostcode]]","v":"0"},{"$f":"CONCATENATE(gastenlijst[[#This Row],[PostCode]],gastenlijst[[#This Row],[PostCode]]+gastenlijst[[#This Row],[HP nummer]])","v":"0"}]
[116,null,null,null,null,null,null,null,null,null,null,null,null,null,null,{"$f":"gastenlijst[[#This Row],[HPenPostcode]]","v":"0"},{"$f":"CONCATENATE(gastenlijst[[#This Row],[PostCode]],gastenlijst[[#This Row],[PostCode]]+gastenlijst[[#This Row],[HP nummer]])","v":"0"}]
[117,null,null,null,null,null,null,null,null,null,null,null,null,null,null,{"$f":"gastenlijst[[#This Row],[HPenPostcode]]","v":"0"},{"$f":"CONCATENATE(gastenlijst[[#This Row],[PostCode]],gastenlijst[[#This Row],[PostCode]]+gastenlijst[[#This Row],[HP nummer]])","v":"0"}]
[118,null,null,null,null,null,null,null,null,null,null,null,null,null,null,{"$f":"gastenlijst[[#This Row],[HPenPostcode]]","v":"0"},{"$f":"CONCATENATE(gastenlijst[[#This Row],[PostCode]],gastenlijst[[#This Row],[PostCode]]+gastenlijst[[#This Row],[HP nummer]])","v":"0"}]
[119,null,null,null,null,null,null,null,null,null,null,null,null,null,null,{"$f":"gastenlijst[[#This Row],[HPenPostcode]]","v":"0"},{"$f":"CONCATENATE(gastenlijst[[#This Row],[PostCode]],gastenlijst[[#This Row],[PostCode]]+gastenlijst[[#This Row],[HP nummer]])","v":"0"}]
[120,null,null,null,null,null,null,null,null,null,null,null,null,null,null,{"$f":"gastenlijst[[#This Row],[HPenPostcode]]","v":"0"},{"$f":"CONCATENATE(gastenlijst[[#This Row],[PostCode]],gastenlijst[[#This Row],[PostCode]]+gastenlijst[[#This Row],[HP nummer]])","v":"0"}]
[121,null,null,null,null,null,null,null,null,null,null,null,null,null,null,{"$f":"gastenlijst[[#This Row],[HPenPostcode]]","v":"0"},{"$f":"CONCATENATE(gastenlijst[[#This Row],[PostCode]],gastenlijst[[#This Row],[PostCode]]+gastenlijst[[#This Row],[HP nummer]])","v":"0"}]
[122,null,null,null,null,null,null,null,null,null,null,null,null,null,null,{"$f":"gastenlijst[[#This Row],[HPenPostcode]]","v":"0"},{"$f":"CONCATENATE(gastenlijst[[#This Row],[PostCode]],gastenlijst[[#This Row],[PostCode]]+gastenlijst[[#This Row],[HP nummer]])","v":"0"}]
[123,null,null,null,null,null,null,null,null,null,null,null,null,null,null,{"$f":"gastenlijst[[#This Row],[HPenPostcode]]","v":"0"},{"$f":"CONCATENATE(gastenlijst[[#This Row],[PostCode]],gastenlijst[[#This Row],[PostCode]]+gastenlijst[[#This Row],[HP nummer]])","v":"0"}]
[124,null,null,null,null,null,null,null,null,null,null,null,null,null,null,{"$f":"gastenlijst[[#This Row],[HPenPostcode]]","v":"0"},{"$f":"CONCATENATE(gastenlijst[[#This Row],[PostCode]],gastenlijst[[#This Row],[PostCode]]+gastenlijst[[#This Row],[HP nummer]])","v":"0"}]
[125,null,null,null,null,null,null,null,null,null,null,null,null,null,null,{"$f":"gastenlijst[[#This Row],[HPenPostcode]]","v":"0"},{"$f":"CONCATENATE(gastenlijst[[#This Row],[PostCode]],gastenlijst[[#This Row],[PostCode]]+gastenlijst[[#This Row],[HP nummer]])","v":"0"}]
[126,null,null,null,null,null,null,null,null,null,null,null,null,null,null,{"$f":"gastenlijst[[#This Row],[HPenPostcode]]","v":"0"},{"$f":"CONCATENATE(gastenlijst[[#This Row],[PostCode]],gastenlijst[[#This Row],[PostCode]]+gastenlijst[[#This Row],[HP nummer]])","v":"0"}]
[127,null,null,null,null,null,null,null,null,null,null,null,null,null,null,{"$f":"gastenlijst[[#This Row],[HPenPostcode]]","v":"0"},{"$f":"CONCATENATE(gastenlijst[[#This Row],[PostCode]],gastenlijst[[#This Row],[PostCode]]+gastenlijst[[#This Row],[HP nummer]])","v":"0"}]
[128,null,null,null,null,null,null,null,null,null,null,null,null,null,null,{"$f":"gastenlijst[[#This Row],[HPenPostcode]]","v":"0"},{"$f":"CONCATENATE(gastenlijst[[#This Row],[PostCode]],gastenlijst[[#This Row],[PostCode]]+gastenlijst[[#This Row],[HP nummer]])","v":"0"}]
[129,null,null,null,null,null,null,null,null,null,null,null,null,null,null,{"$f":"gastenlijst[[#This Row],[HPenPostcode]]","v":"0"},{"$f":"CONCATENATE(gastenlijst[[#This Row],[PostCode]],gastenlijst[[#This Row],[PostCode]]+gastenlijst[[#This Row],[HP nummer]])","v":"0"}]
[130,null,null,null,null,null,null,null,null,null,null,null,null,null,null,{"$f":"gastenlijst[[#This Row],[HPenPostcode]]","v":"0"},{"$f":"CONCATENATE(gastenlijst[[#This Row],[PostCode]],gastenlijst[[#This Row],[PostCode]]+gastenlijst[[#This Row],[HP nummer]])","v":"0"}]
[131,null,null,null,null,null,null,null,null,null,null,null,null,null,null,{"$f":"gastenlijst[[#This Row],[HPenPostcode]]","v":"0"},{"$f":"CONCATENATE(gastenlijst[[#This Row],[PostCode]],gastenlijst[[#This Row],[PostCode]]+gastenlijst[[#This Row],[HP nummer]])","v":"0"}]
[132,null,null,null,null,null,null,null,null,null,null,null,null,null,null,{"$f":"gastenlijst[[#This Row],[HPenPostcode]]","v":"0"},{"$f":"CONCATENATE(gastenlijst[[#This Row],[PostCode]],gastenlijst[[#This Row],[PostCode]]+gastenlijst[[#This Row],[HP nummer]])","v":"0"}]
[133,null,null,null,null,null,null,null,null,null,null,null,null,null,null,{"$f":"gastenlijst[[#This Row],[HPenPostcode]]","v":"0"},{"$f":"CONCATENATE(gastenlijst[[#This Row],[PostCode]],gastenlijst[[#This Row],[PostCode]]+gastenlijst[[#This Row],[HP nummer]])","v":"0"}]
[134,null,null,null,null,null,null,null,null,null,null,null,null,null,null,{"$f":"gastenlijst[[#This Row],[HPenPostcode]]","v":"0"},{"$f":"CONCATENATE(gastenlijst[[#This Row],[PostCode]],gastenlijst[[#This Row],[PostCode]]+gastenlijst[[#This Row],[HP nummer]])","v":"0"}]
[135,null,null,null,null,null,null,null,null,null,null,null,null,null,null,{"$f":"gastenlijst[[#This Row],[HPenPostcode]]","v":"0"},{"$f":"CONCATENATE(gastenlijst[[#This Row],[PostCode]],gastenlijst[[#This Row],[PostCode]]+gastenlijst[[#This Row],[HP nummer]])","v":"0"}]
[136,null,null,null,null,null,null,null,null,null,null,null,null,null,null,{"$f":"gastenlijst[[#This Row],[HPenPostcode]]","v":"0"},{"$f":"CONCATENATE(gastenlijst[[#This Row],[PostCode]],gastenlijst[[#This Row],[PostCode]]+gastenlijst[[#This Row],[HP nummer]])","v":"0"}]
[137,null,null,null,null,null,null,null,null,null,null,null,null,null,null,{"$f":"gastenlijst[[#This Row],[HPenPostcode]]","v":"0"},{"$f":"CONCATENATE(gastenlijst[[#This Row],[PostCode]],gastenlijst[[#This Row],[PostCode]]+gastenlijst[[#This Row],[HP nummer]])","v":"0"}]
[138,null,null,null,null,null,null,null,null,null,null,null,null,null,null,{"$f":"gastenlijst[[#This Row],[HPenPostcode]]","v":"0"},{"$f":"CONCATENATE(gastenlijst[[#This Row],[PostCode]],gastenlijst[[#This Row],[PostCode]]+gastenlijst[[#This Row],[HP nummer]])","v":"0"}]
[139,null,null,null,null,null,null,null,null,null,null,null,null,null,null,{"$f":"gastenlijst[[#This Row],[HPenPostcode]]","v":"0"},{"$f":"CONCATENATE(gastenlijst[[#This Row],[PostCode]],gastenlijst[[#This Row],[PostCode]]+gastenlijst[[#This Row],[HP nummer]])","v":"0"}]
[140,null,null,null,null,null,null,null,null,null,null,null,null,null,null,{"$f":"gastenlijst[[#This Row],[HPenPostcode]]","v":"0"},{"$f":"CONCATENATE(gastenlijst[[#This Row],[PostCode]],gastenlijst[[#This Row],[PostCode]]+gastenlijst[[#This Row],[HP nummer]])","v":"0"}]
[141,null,null,null,null,null,null,null,null,null,null,null,null,null,null,{"$f":"gastenlijst[[#This Row],[HPenPostcode]]","v":"0"},{"$f":"CONCATENATE(gastenlijst[[#This Row],[PostCode]],gastenlijst[[#This Row],[PostCode]]+gastenlijst[[#This Row],[HP nummer]])","v":"0"}]
[142,null,null,null,null,null,null,null,null,null,null,null,null,null,null,{"$f":"gastenlijst[[#This Row],[HPenPostcode]]","v":"0"},{"$f":"CONCATENATE(gastenlijst[[#This Row],[PostCode]],gastenlijst[[#This Row],[PostCode]]+gastenlijst[[#This Row],[HP nummer]])","v":"0"}]
[143,null,null,null,null,null,null,null,null,null,null,null,null,null,null,{"$f":"gastenlijst[[#This Row],[HPenPostcode]]","v":"0"},{"$f":"CONCATENATE(gastenlijst[[#This Row],[PostCode]],gastenlijst[[#This Row],[PostCode]]+gastenlijst[[#This Row],[HP nummer]])","v":"0"}]
[144,null,null,null,null,null,null,null,null,null,null,null,null,null,null,{"$f":"gastenlijst[[#This Row],[HPenPostcode]]","v":"0"},{"$f":"CONCATENATE(gastenlijst[[#This Row],[PostCode]],gastenlijst[[#This Row],[PostCode]]+gastenlijst[[#This Row],[HP nummer]])","v":"0"}]
[145,null,null,null,null,null,null,null,null,null,null,null,null,null,null,{"$f":"gastenlijst[[#This Row],[HPenPostcode]]","v":"0"},{"$f":"CONCATENATE(gastenlijst[[#This Row],[PostCode]],gastenlijst[[#This Row],[PostCode]]+gastenlijst[[#This Row],[HP nummer]])","v":"0"}]
[146,null,null,null,null,null,null,null,null,null,null,null,null,null,null,{"$f":"gastenlijst[[#This Row],[HPenPostcode]]","v":"0"},{"$f":"CONCATENATE(gastenlijst[[#This Row],[PostCode]],gastenlijst[[#This Row],[PostCode]]+gastenlijst[[#This Row],[HP nummer]])","v":"0"}]
[147,null,null,null,null,null,null,null,null,null,null,null,null,null,null,{"$f":"gastenlijst[[#This Row],[HPenPostcode]]","v":"0"},{"$f":"CONCATENATE(gastenlijst[[#This Row],[PostCode]],gastenlijst[[#This Row],[PostCode]]+gastenlijst[[#This Row],[HP nummer]])","v":"0"}]
[148,null,null,null,null,null,null,null,null,null,null,null,null,null,null,{"$f":"gastenlijst[[#This Row],[HPenPostcode]]","v":"0"},{"$f":"CONCATENATE(gastenlijst[[#This Row],[PostCode]],gastenlijst[[#This Row],[PostCode]]+gastenlijst[[#This Row],[HP nummer]])","v":"0"}]
[149,null,null,null,null,null,null,null,null,null,null,null,null,null,null,{"$f":"gastenlijst[[#This Row],[HPenPostcode]]","v":"0"},{"$f":"CONCATENATE(gastenlijst[[#This Row],[PostCode]],gastenlijst[[#This Row],[PostCode]]+gastenlijst[[#This Row],[HP nummer]])","v":"0"}]
[150,null,null,null,null,null,null,null,null,null,null,null,null,null,null,{"$f":"gastenlijst[[#This Row],[HPenPostcode]]","v":"0"},{"$f":"CONCATENATE(gastenlijst[[#This Row],[PostCode]],gastenlijst[[#This Row],[PostCode]]+gastenlijst[[#This Row],[HP nummer]])","v":"0"}]
[151,null,null,null,null,null,null,null,null,null,null,null,null,null,null,{"$f":"gastenlijst[[#This Row],[HPenPostcode]]","v":"0"},{"$f":"CONCATENATE(gastenlijst[[#This Row],[PostCode]],gastenlijst[[#This Row],[PostCode]]+gastenlijst[[#This Row],[HP nummer]])","v":"0"}]
[152,null,null,null,null,null,null,null,null,null,null,null,null,null,null,{"$f":"gastenlijst[[#This Row],[HPenPostcode]]","v":"0"},{"$f":"CONCATENATE(gastenlijst[[#This Row],[PostCode]],gastenlijst[[#This Row],[PostCode]]+gastenlijst[[#This Row],[HP nummer]])","v":"0"}]
[153,null,null,null,null,null,null,null,null,null,null,null,null,null,null,{"$f":"gastenlijst[[#This Row],[HPenPostcode]]","v":"0"},{"$f":"CONCATENATE(gastenlijst[[#This Row],[PostCode]],gastenlijst[[#This Row],[PostCode]]+gastenlijst[[#This Row],[HP nummer]])","v":"0"}]
[154,null,null,null,null,null,null,null,null,null,null,null,null,null,null,{"$f":"gastenlijst[[#This Row],[HPenPostcode]]","v":"0"},{"$f":"CONCATENATE(gastenlijst[[#This Row],[PostCode]],gastenlijst[[#This Row],[PostCode]]+gastenlijst[[#This Row],[HP nummer]])","v":"0"}]
[155,null,null,null,null,null,null,null,null,null,null,null,null,null,null,{"$f":"gastenlijst[[#This Row],[HPenPostcode]]","v":"0"},{"$f":"CONCATENATE(gastenlijst[[#This Row],[PostCode]],gastenlijst[[#This Row],[PostCode]]+gastenlijst[[#This Row],[HP nummer]])","v":"0"}]
[156,null,null,null,null,null,null,null,null,null,null,null,null,null,null,{"$f":"gastenlijst[[#This Row],[HPenPostcode]]","v":"0"},{"$f":"CONCATENATE(gastenlijst[[#This Row],[PostCode]],gastenlijst[[#This Row],[PostCode]]+gastenlijst[[#This Row],[HP nummer]])","v":"0"}]
[157,null,null,null,null,null,null,null,null,null,null,null,null,null,null,{"$f":"gastenlijst[[#This Row],[HPenPostcode]]","v":"0"},{"$f":"CONCATENATE(gastenlijst[[#This Row],[PostCode]],gastenlijst[[#This Row],[PostCode]]+gastenlijst[[#This Row],[HP nummer]])","v":"0"}]
[158,null,null,null,null,null,null,null,null,null,null,null,null,null,null,{"$f":"gastenlijst[[#This Row],[HPenPostcode]]","v":"0"},{"$f":"CONCATENATE(gastenlijst[[#This Row],[PostCode]],gastenlijst[[#This Row],[PostCode]]+gastenlijst[[#This Row],[HP nummer]])","v":"0"}]
[159,null,null,null,null,null,null,null,null,null,null,null,null,null,null,{"$f":"gastenlijst[[#This Row],[HPenPostcode]]","v":"0"},{"$f":"CONCATENATE(gastenlijst[[#This Row],[PostCode]],gastenlijst[[#This Row],[PostCode]]+gastenlijst[[#This Row],[HP nummer]])","v":"0"}]
[160,null,null,null,null,null,null,null,null,null,null,null,null,null,null,{"$f":"gastenlijst[[#This Row],[HPenPostcode]]","v":"0"},{"$f":"CONCATENATE(gastenlijst[[#This Row],[PostCode]],gastenlijst[[#This Row],[PostCode]]+gastenlijst[[#This Row],[HP nummer]])","v":"0"}]
[161,null,null,null,null,null,null,null,null,null,null,null,null,null,null,{"$f":"gastenlijst[[#This Row],[HPenPostcode]]","v":"0"},{"$f":"CONCATENATE(gastenlijst[[#This Row],[PostCode]],gastenlijst[[#This Row],[PostCode]]+gastenlijst[[#This Row],[HP nummer]])","v":"0"}]
[162,null,null,null,null,null,null,null,null,null,null,null,null,null,null,{"$f":"gastenlijst[[#This Row],[HPenPostcode]]","v":"0"},{"$f":"CONCATENATE(gastenlijst[[#This Row],[PostCode]],gastenlijst[[#This Row],[PostCode]]+gastenlijst[[#This Row],[HP nummer]])","v":"0"}]
[163,null,null,null,null,null,null,null,null,null,null,null,null,null,null,{"$f":"gastenlijst[[#This Row],[HPenPostcode]]","v":"0"},{"$f":"CONCATENATE(gastenlijst[[#This Row],[PostCode]],gastenlijst[[#This Row],[PostCode]]+gastenlijst[[#This Row],[HP nummer]])","v":"0"}]
[164,null,null,null,null,null,null,null,null,null,null,null,null,null,null,{"$f":"gastenlijst[[#This Row],[HPenPostcode]]","v":"0"},{"$f":"CONCATENATE(gastenlijst[[#This Row],[PostCode]],gastenlijst[[#This Row],[PostCode]]+gastenlijst[[#This Row],[HP nummer]])","v":"0"}]
[165,null,null,null,null,null,null,null,null,null,null,null,null,null,null,{"$f":"gastenlijst[[#This Row],[HPenPostcode]]","v":"0"},{"$f":"CONCATENATE(gastenlijst[[#This Row],[PostCode]],gastenlijst[[#This Row],[PostCode]]+gastenlijst[[#This Row],[HP nummer]])","v":"0"}]
[166,null,null,null,null,null,null,null,null,null,null,null,null,null,null,{"$f":"gastenlijst[[#This Row],[HPenPostcode]]","v":"0"},{"$f":"CONCATENATE(gastenlijst[[#This Row],[PostCode]],gastenlijst[[#This Row],[PostCode]]+gastenlijst[[#This Row],[HP nummer]])","v":"0"}]
[167,null,null,null,null,null,null,null,null,null,null,null,null,null,null,{"$f":"gastenlijst[[#This Row],[HPenPostcode]]","v":"0"},{"$f":"CONCATENATE(gastenlijst[[#This Row],[PostCode]],gastenlijst[[#This Row],[PostCode]]+gastenlijst[[#This Row],[HP nummer]])","v":"0"}]
[168,null,null,null,null,null,null,null,null,null,null,null,null,null,null,{"$f":"gastenlijst[[#This Row],[HPenPostcode]]","v":"0"},{"$f":"CONCATENATE(gastenlijst[[#This Row],[PostCode]],gastenlijst[[#This Row],[PostCode]]+gastenlijst[[#This Row],[HP nummer]])","v":"0"}]
[169,null,null,null,null,null,null,null,null,null,null,null,null,null,null,{"$f":"gastenlijst[[#This Row],[HPenPostcode]]","v":"0"},{"$f":"CONCATENATE(gastenlijst[[#This Row],[PostCode]],gastenlijst[[#This Row],[PostCode]]+gastenlijst[[#This Row],[HP nummer]])","v":"0"}]
[170,null,null,null,null,null,null,null,null,null,null,null,null,null,null,{"$f":"gastenlijst[[#This Row],[HPenPostcode]]","v":"0"},{"$f":"CONCATENATE(gastenlijst[[#This Row],[PostCode]],gastenlijst[[#This Row],[PostCode]]+gastenlijst[[#This Row],[HP nummer]])","v":"0"}]
[171,null,null,null,null,null,null,null,null,null,null,null,null,null,null,{"$f":"gastenlijst[[#This Row],[HPenPostcode]]","v":"0"},{"$f":"CONCATENATE(gastenlijst[[#This Row],[PostCode]],gastenlijst[[#This Row],[PostCode]]+gastenlijst[[#This Row],[HP nummer]])","v":"0"}]
[172,null,null,null,null,null,null,null,null,null,null,null,null,null,null,{"$f":"gastenlijst[[#This Row],[HPenPostcode]]","v":"0"},{"$f":"CONCATENATE(gastenlijst[[#This Row],[PostCode]],gastenlijst[[#This Row],[PostCode]]+gastenlijst[[#This Row],[HP nummer]])","v":"0"}]
[173,null,null,null,null,null,null,null,null,null,null,null,null,null,null,{"$f":"gastenlijst[[#This Row],[HPenPostcode]]","v":"0"},{"$f":"CONCATENATE(gastenlijst[[#This Row],[PostCode]],gastenlijst[[#This Row],[PostCode]]+gastenlijst[[#This Row],[HP nummer]])","v":"0"}]
[174,null,null,null,null,null,null,null,null,null,null,null,null,null,null,{"$f":"gastenlijst[[#This Row],[HPenPostcode]]","v":"0"},{"$f":"CONCATENATE(gastenlijst[[#This Row],[PostCode]],gastenlijst[[#This Row],[PostCode]]+gastenlijst[[#This Row],[HP nummer]])","v":"0"}]
[175,null,null,null,null,null,null,null,null,null,null,null,null,null,null,{"$f":"gastenlijst[[#This Row],[HPenPostcode]]","v":"0"},{"$f":"CONCATENATE(gastenlijst[[#This Row],[PostCode]],gastenlijst[[#This Row],[PostCode]]+gastenlijst[[#This Row],[HP nummer]])","v":"0"}]
[176,null,null,null,null,null,null,null,null,null,null,null,null,null,null,{"$f":"gastenlijst[[#This Row],[HPenPostcode]]","v":"0"},{"$f":"CONCATENATE(gastenlijst[[#This Row],[PostCode]],gastenlijst[[#This Row],[PostCode]]+gastenlijst[[#This Row],[HP nummer]])","v":"0"}]
[177,null,null,null,null,null,null,null,null,null,null,null,null,null,null,{"$f":"gastenlijst[[#This Row],[HPenPostcode]]","v":"0"},{"$f":"CONCATENATE(gastenlijst[[#This Row],[PostCode]],gastenlijst[[#This Row],[PostCode]]+gastenlijst[[#This Row],[HP nummer]])","v":"0"}]
[178,null,null,null,null,null,null,null,null,null,null,null,null,null,null,{"$f":"gastenlijst[[#This Row],[HPenPostcode]]","v":"0"},{"$f":"CONCATENATE(gastenlijst[[#This Row],[PostCode]],gastenlijst[[#This Row],[PostCode]]+gastenlijst[[#This Row],[HP nummer]])","v":"0"}]
[179,null,null,null,null,null,null,null,null,null,null,null,null,null,null,{"$f":"gastenlijst[[#This Row],[HPenPostcode]]","v":"0"},{"$f":"CONCATENATE(gastenlijst[[#This Row],[PostCode]],gastenlijst[[#This Row],[PostCode]]+gastenlijst[[#This Row],[HP nummer]])","v":"0"}]
[180,null,null,null,null,null,null,null,null,null,null,null,null,null,null,{"$f":"gastenlijst[[#This Row],[HPenPostcode]]","v":"0"},{"$f":"CONCATENATE(gastenlijst[[#This Row],[PostCode]],gastenlijst[[#This Row],[PostCode]]+gastenlijst[[#This Row],[HP nummer]])","v":"0"}]
[181,null,null,null,null,null,null,null,null,null,null,null,null,null,null,{"$f":"gastenlijst[[#This Row],[HPenPostcode]]","v":"0"},{"$f":"CONCATENATE(gastenlijst[[#This Row],[PostCode]],gastenlijst[[#This Row],[PostCode]]+gastenlijst[[#This Row],[HP nummer]])","v":"0"}]
[182,null,null,null,null,null,null,null,null,null,null,null,null,null,null,{"$f":"gastenlijst[[#This Row],[HPenPostcode]]","v":"0"},{"$f":"CONCATENATE(gastenlijst[[#This Row],[PostCode]],gastenlijst[[#This Row],[PostCode]]+gastenlijst[[#This Row],[HP nummer]])","v":"0"}]
[183,null,null,null,null,null,null,null,null,null,null,null,null,null,null,{"$f":"gastenlijst[[#This Row],[HPenPostcode]]","v":"0"},{"$f":"CONCATENATE(gastenlijst[[#This Row],[PostCode]],gastenlijst[[#This Row],[PostCode]]+gastenlijst[[#This Row],[HP nummer]])","v":"0"}]
[184,null,null,null,null,null,null,null,null,null,null,null,null,null,null,{"$f":"gastenlijst[[#This Row],[HPenPostcode]]","v":"0"},{"$f":"CONCATENATE(gastenlijst[[#This Row],[PostCode]],gastenlijst[[#This Row],[PostCode]]+gastenlijst[[#This Row],[HP nummer]])","v":"0"}]
[185,null,null,null,null,null,null,null,null,null,null,null,null,null,null,{"$f":"gastenlijst[[#This Row],[HPenPostcode]]","v":"0"},{"$f":"CONCATENATE(gastenlijst[[#This Row],[PostCode]],gastenlijst[[#This Row],[PostCode]]+gastenlijst[[#This Row],[HP nummer]])","v":"0"}]
[186,null,null,null,null,null,null,null,null,null,null,null,null,null,null,{"$f":"gastenlijst[[#This Row],[HPenPostcode]]","v":"0"},{"$f":"CONCATENATE(gastenlijst[[#This Row],[PostCode]],gastenlijst[[#This Row],[PostCode]]+gastenlijst[[#This Row],[HP nummer]])","v":"0"}]
[187,null,null,null,null,null,null,null,null,null,null,null,null,null,null,{"$f":"gastenlijst[[#This Row],[HPenPostcode]]","v":"0"},{"$f":"CONCATENATE(gastenlijst[[#This Row],[PostCode]],gastenlijst[[#This Row],[PostCode]]+gastenlijst[[#This Row],[HP nummer]])","v":"0"}]
[188,null,null,null,null,null,null,null,null,null,null,null,null,null,null,{"$f":"gastenlijst[[#This Row],[HPenPostcode]]","v":"0"},{"$f":"CONCATENATE(gastenlijst[[#This Row],[PostCode]],gastenlijst[[#This Row],[PostCode]]+gastenlijst[[#This Row],[HP nummer]])","v":"0"}]
[189,null,null,null,null,null,null,null,null,null,null,null,null,null,null,{"$f":"gastenlijst[[#This Row],[HPenPostcode]]","v":"0"},{"$f":"CONCATENATE(gastenlijst[[#This Row],[PostCode]],gastenlijst[[#This Row],[PostCode]]+gastenlijst[[#This Row],[HP nummer]])","v":"0"}]
[190,null,null,null,null,null,null,null,null,null,null,null,null,null,null,{"$f":"gastenlijst[[#This Row],[HPenPostcode]]","v":"0"},{"$f":"CONCATENATE(gastenlijst[[#This Row],[PostCode]],gastenlijst[[#This Row],[PostCode]]+gastenlijst[[#This Row],[HP nummer]])","v":"0"}]
[191,null,null,null,null,null,null,null,null,null,null,null,null,null,null,{"$f":"gastenlijst[[#This Row],[HPenPostcode]]","v":"0"},{"$f":"CONCATENATE(gastenlijst[[#This Row],[PostCode]],gastenlijst[[#This Row],[PostCode]]+gastenlijst[[#This Row],[HP nummer]])","v":"0"}]
[192,null,null,null,null,null,null,null,null,null,null,null,null,null,null,{"$f":"gastenlijst[[#This Row],[HPenPostcode]]","v":"0"},{"$f":"CONCATENATE(gastenlijst[[#This Row],[PostCode]],gastenlijst[[#This Row],[PostCode]]+gastenlijst[[#This Row],[HP nummer]])","v":"0"}]
[193,null,null,null,null,null,null,null,null,null,null,null,null,null,null,{"$f":"gastenlijst[[#This Row],[HPenPostcode]]","v":"0"},{"$f":"CONCATENATE(gastenlijst[[#This Row],[PostCode]],gastenlijst[[#This Row],[PostCode]]+gastenlijst[[#This Row],[HP nummer]])","v":"0"}]
[194,null,null,null,null,null,null,null,null,null,null,null,null,null,null,{"$f":"gastenlijst[[#This Row],[HPenPostcode]]","v":"0"},{"$f":"CONCATENATE(gastenlijst[[#This Row],[PostCode]],gastenlijst[[#This Row],[PostCode]]+gastenlijst[[#This Row],[HP nummer]])","v":"0"}]
[195,null,null,null,null,null,null,null,null,null,null,null,null,null,null,{"$f":"gastenlijst[[#This Row],[HPenPostcode]]","v":"0"},{"$f":"CONCATENATE(gastenlijst[[#This Row],[PostCode]],gastenlijst[[#This Row],[PostCode]]+gastenlijst[[#This Row],[HP nummer]])","v":"0"}]
[196,null,null,null,null,null,null,null,null,null,null,null,null,null,null,{"$f":"gastenlijst[[#This Row],[HPenPostcode]]","v":"0"},{"$f":"CONCATENATE(gastenlijst[[#This Row],[PostCode]],gastenlijst[[#This Row],[PostCode]]+gastenlijst[[#This Row],[HP nummer]])","v":"0"}]
[197,null,null,null,null,null,null,null,null,null,null,null,null,null,null,{"$f":"gastenlijst[[#This Row],[HPenPostcode]]","v":"0"},{"$f":"CONCATENATE(gastenlijst[[#This Row],[PostCode]],gastenlijst[[#This Row],[PostCode]]+gastenlijst[[#This Row],[HP nummer]])","v":"0"}]
[198,null,null,null,null,null,null,null,null,null,null,null,null,null,null,{"$f":"gastenlijst[[#This Row],[HPenPostcode]]","v":"0"},{"$f":"CONCATENATE(gastenlijst[[#This Row],[PostCode]],gastenlijst[[#This Row],[PostCode]]+gastenlijst[[#This Row],[HP nummer]])","v":"0"}]
[199,null,null,null,null,null,null,null,null,null,null,null,null,null,null,{"$f":"gastenlijst[[#This Row],[HPenPostcode]]","v":"0"},{"$f":"CONCATENATE(gastenlijst[[#This Row],[PostCode]],gastenlijst[[#This Row],[PostCode]]+gastenlijst[[#This Row],[HP nummer]])","v":"0"}]
[200,null,null,null,null,null,null,null,null,null,null,null,null,null,null,{"$f":"gastenlijst[[#This Row],[HPenPostcode]]","v":"0"},{"$f":"CONCATENATE(gastenlijst[[#This Row],[PostCode]],gastenlijst[[#This Row],[PostCode]]+gastenlijst[[#This Row],[HP nummer]])","v":"0"}]
[201,null,null,null,null,null,null,null,null,null,null,null,null,null,null,{"$f":"gastenlijst[[#This Row],[HPenPostcode]]","v":"0"},{"$f":"CONCATENATE(gastenlijst[[#This Row],[PostCode]],gastenlijst[[#This Row],[PostCode]]+gastenlijst[[#This Row],[HP nummer]])","v":"0"}]
[202,null,null,null,null,null,null,null,null,null,null,null,null,null,null,{"$f":"gastenlijst[[#This Row],[HPenPostcode]]","v":"0"},{"$f":"CONCATENATE(gastenlijst[[#This Row],[PostCode]],gastenlijst[[#This Row],[PostCode]]+gastenlijst[[#This Row],[HP nummer]])","v":"0"}]
[203,null,null,null,null,null,null,null,null,null,null,null,null,null,null,{"$f":"gastenlijst[[#This Row],[HPenPostcode]]","v":"0"},{"$f":"CONCATENATE(gastenlijst[[#This Row],[PostCode]],gastenlijst[[#This Row],[PostCode]]+gastenlijst[[#This Row],[HP nummer]])","v":"0"}]
[204,null,null,null,null,null,null,null,null,null,null,null,null,null,null,{"$f":"gastenlijst[[#This Row],[HPenPostcode]]","v":"0"},{"$f":"CONCATENATE(gastenlijst[[#This Row],[PostCode]],gastenlijst[[#This Row],[PostCode]]+gastenlijst[[#This Row],[HP nummer]])","v":"0"}]
[205,null,null,null,null,null,null,null,null,null,null,null,null,null,null,{"$f":"gastenlijst[[#This Row],[HPenPostcode]]","v":"0"},{"$f":"CONCATENATE(gastenlijst[[#This Row],[PostCode]],gastenlijst[[#This Row],[PostCode]]+gastenlijst[[#This Row],[HP nummer]])","v":"0"}]
[206,null,null,null,null,null,null,null,null,null,null,null,null,null,null,{"$f":"gastenlijst[[#This Row],[HPenPostcode]]","v":"0"},{"$f":"CONCATENATE(gastenlijst[[#This Row],[PostCode]],gastenlijst[[#This Row],[PostCode]]+gastenlijst[[#This Row],[HP nummer]])","v":"0"}]
[207,null,null,null,null,null,null,null,null,null,null,null,null,null,null,{"$f":"gastenlijst[[#This Row],[HPenPostcode]]","v":"0"},{"$f":"CONCATENATE(gastenlijst[[#This Row],[PostCode]],gastenlijst[[#This Row],[PostCode]]+gastenlijst[[#This Row],[HP nummer]])","v":"0"}]
[208,null,null,null,null,null,null,null,null,null,null,null,null,null,null,{"$f":"gastenlijst[[#This Row],[HPenPostcode]]","v":"0"},{"$f":"CONCATENATE(gastenlijst[[#This Row],[PostCode]],gastenlijst[[#This Row],[PostCode]]+gastenlijst[[#This Row],[HP nummer]])","v":"0"}]
[209,null,null,null,null,null,null,null,null,null,null,null,null,null,null,{"$f":"gastenlijst[[#This Row],[HPenPostcode]]","v":"0"},{"$f":"CONCATENATE(gastenlijst[[#This Row],[PostCode]],gastenlijst[[#This Row],[PostCode]]+gastenlijst[[#This Row],[HP nummer]])","v":"0"}]
[210,null,null,null,null,null,null,null,null,null,null,null,null,null,null,{"$f":"gastenlijst[[#This Row],[HPenPostcode]]","v":"0"},{"$f":"CONCATENATE(gastenlijst[[#This Row],[PostCode]],gastenlijst[[#This Row],[PostCode]]+gastenlijst[[#This Row],[HP nummer]])","v":"0"}]
[211,null,null,null,null,null,null,null,null,null,null,null,null,null,null,{"$f":"gastenlijst[[#This Row],[HPenPostcode]]","v":"0"},{"$f":"CONCATENATE(gastenlijst[[#This Row],[PostCode]],gastenlijst[[#This Row],[PostCode]]+gastenlijst[[#This Row],[HP nummer]])","v":"0"}]
[212,null,null,null,null,null,null,null,null,null,null,null,null,null,null,{"$f":"gastenlijst[[#This Row],[HPenPostcode]]","v":"0"},{"$f":"CONCATENATE(gastenlijst[[#This Row],[PostCode]],gastenlijst[[#This Row],[PostCode]]+gastenlijst[[#This Row],[HP nummer]])","v":"0"}]
[213,null,null,null,null,null,null,null,null,null,null,null,null,null,null,{"$f":"gastenlijst[[#This Row],[HPenPostcode]]","v":"0"},{"$f":"CONCATENATE(gastenlijst[[#This Row],[PostCode]],gastenlijst[[#This Row],[PostCode]]+gastenlijst[[#This Row],[HP nummer]])","v":"0"}]
[214,null,null,null,null,null,null,null,null,null,null,null,null,null,null,{"$f":"gastenlijst[[#This Row],[HPenPostcode]]","v":"0"},{"$f":"CONCATENATE(gastenlijst[[#This Row],[PostCode]],gastenlijst[[#This Row],[PostCode]]+gastenlijst[[#This Row],[HP nummer]])","v":"0"}]
[215,null,null,null,null,null,null,null,null,null,null,null,null,null,null,{"$f":"gastenlijst[[#This Row],[HPenPostcode]]","v":"0"},{"$f":"CONCATENATE(gastenlijst[[#This Row],[PostCode]],gastenlijst[[#This Row],[PostCode]]+gastenlijst[[#This Row],[HP nummer]])","v":"0"}]
[216,null,null,null,null,null,null,null,null,null,null,null,null,null,null,{"$f":"gastenlijst[[#This Row],[HPenPostcode]]","v":"0"},{"$f":"CONCATENATE(gastenlijst[[#This Row],[PostCode]],gastenlijst[[#This Row],[PostCode]]+gastenlijst[[#This Row],[HP nummer]])","v":"0"}]
[217,null,null,null,null,null,null,null,null,null,null,null,null,null,null,{"$f":"gastenlijst[[#This Row],[HPenPostcode]]","v":"0"},{"$f":"CONCATENATE(gastenlijst[[#This Row],[PostCode]],gastenlijst[[#This Row],[PostCode]]+gastenlijst[[#This Row],[HP nummer]])","v":"0"}]
[218,null,null,null,null,null,null,null,null,null,null,null,null,null,null,{"$f":"gastenlijst[[#This Row],[HPenPostcode]]","v":"0"},{"$f":"CONCATENATE(gastenlijst[[#This Row],[PostCode]],gastenlijst[[#This Row],[PostCode]]+gastenlijst[[#This Row],[HP nummer]])","v":"0"}]
[219,null,null,null,null,null,null,null,null,null,null,null,null,null,null,{"$f":"gastenlijst[[#This Row],[HPenPostcode]]","v":"0"},{"$f":"CONCATENATE(gastenlijst[[#This Row],[PostCode]],gastenlijst[[#This Row],[PostCode]]+gastenlijst[[#This Row],[HP nummer]])","v":"0"}]
[220,null,null,null,null,null,null,null,null,null,null,null,null,null,null,{"$f":"gastenlijst[[#This Row],[HPenPostcode]]","v":"0"},{"$f":"CONCATENATE(gastenlijst[[#This Row],[PostCode]],gastenlijst[[#This Row],[PostCode]]+gastenlijst[[#This Row],[HP nummer]])","v":"0"}]
[221,null,null,null,null,null,null,null,null,null,null,null,null,null,null,{"$f":"gastenlijst[[#This Row],[HPenPostcode]]","v":"0"},{"$f":"CONCATENATE(gastenlijst[[#This Row],[PostCode]],gastenlijst[[#This Row],[PostCode]]+gastenlijst[[#This Row],[HP nummer]])","v":"0"}]